fUST/lending_fUST_20250805
["ID","MTS","AMOUNT","RATE_DAILY","PERIOD"]
[377321745,1754341347555,-151.88,0.00027522,15]
[377321746,1754341347604,5000.0,0.000261,2]
[377321747,1754341358739,177.945787,0.00013699,2]
[377321748,1754341358982,177.945787,0.00020187,2]
[377321749,1754341362757,5000.0,0.000261,2]
[377321750,1754341363450,-177.945787,0.00026676,2]
[377321751,1754341363475,-82.91016386,0.00027622,15]
[377321753,1754341365337,-68.96983614,0.00027622,15]
[377321754,1754341380126,5000.0,0.000261,2]
[377321755,1754341387301,883.160197,0.00025778,2]
[377321756,1754341388573,751.67996605,0.00026044,2]
[377321757,1754341389877,-156.63281297,0.0002716,2]
[377321758,1754341392127,-155.11876903,0.0002716,2]
[377321759,1754341392150,-169.57067498,0.00027619,2]
[377321760,1754341394920,-50.39351704,0.00027619,2]
[377321761,1754341395361,239.93387909,0.000261,2]
[377321762,1754341395388,1060.2085784,0.000261,2]
[377321763,1754341522963,985.0388022,0.0003,30]
[377321764,1754341534474,68350.58239481,0.0003,30]
[377321765,1754341545193,-151.88,0.0002751,15]
[377321766,1754341545219,-122.8328862,0.0002751,2]
[377321767,1754341549556,-336.4468841,0.0002751,2]
[377321768,1754341551902,-82.81782744,0.0002751,2]
[377321769,1754341551932,-151.88,0.0002761,15]
[377321770,1754341574773,-225.22879421,0.00027496,2]
[377321771,1754341577617,-318.53129967,0.00027496,2]
[377321772,1754341582833,-179.09933305,0.00027496,2]
[377321773,1754341585028,-280.44197443,0.00027496,2]
[377321774,1754341587219,-175.98,0.00026515,2]
[377321775,1754341589599,-343.06013846,0.00026515,2]
[377321776,1754341597130,-183.818179,0.00026515,2]
[377321777,1754341598979,-206.01154556,0.00026515,2]
[377321778,1754341600833,-131.81617203,0.00026515,2]
[377321779,1754341600863,-100.21385247,0.00027495,2]
[377321780,1754341602437,-168.41790488,0.00027495,2]
[377321781,1754341604206,-231.36824265,0.00027495,2]
[377321782,1754341604231,-43.34207835,0.00027495,2]
[377321783,1754341606505,-389.26686351,0.00027495,2]
[377321784,1754341610016,-67.39105814,0.00027495,2]
[377321785,1754341610039,-138.7461751,0.00027495,2]
[377321786,1754341611693,-323.23278149,0.00027495,2]
[377321787,1754341614695,-38.02104341,0.00027495,2]
[377321788,1754341614724,-155.38006645,0.00027495,2]
[377321789,1754341617264,-344.61993355,0.00027495,2]
[377321790,1754341617288,-36.09139516,0.00027495,2]
[377321791,1754341620686,-254.43632542,0.00027486,10]
[377321792,1754341622999,-194.94826949,0.00027486,10]
[377321793,1754341626688,-273.30277764,0.00027486,10]
[377321794,1754341629296,-179.96740739,0.00027486,10]
[377321795,1754341631807,-159.12016755,0.00027486,10]
[377321796,1754341634091,-241.65827845,0.00027486,10]
[377321797,1754341637740,-178.28110486,0.00027486,10]
[377321798,1754341640534,-153.50768169,0.00027486,10]
[377321799,1754341643443,-204.67690893,0.00027494,2]
[377321800,1754341647397,-95.32309107,0.00027494,2]
[377321801,1754341647421,-58.18459062,0.00027495,2]
[377321802,1754341649381,153.50768169,0.00027395,2]
[377321803,1754341662924,-259.89752222,0.00027395,2]
[377321804,1754341664720,-113.19729159,0.00027395,2]
[377321805,1754341698397,277.98121,0.00025778,2]
[377321806,1754341699028,-153.50768169,0.00027385,2]
[377321807,1754341699051,-17.48231831,0.00027395,2]
[377321808,1754341699302,187.64708472,0.00026044,2]
[377321809,1754341703719,-203.97573463,0.00027395,2]
[377321810,1754341705991,-187.46445198,0.00027395,2]
[377321811,1754341709492,-235.73778896,0.00027395,2]
[377321812,1754341711404,-326.58083381,0.00027395,2]
[377321813,1754341714267,-322.88729813,0.00027395,2]
[377321814,1754341715778,-211.3437936,0.00027395,2]
[377321815,1754341719604,-13.07595508,0.00027395,2]
[377321816,1754341719632,-136.02536338,0.00027395,2]
[377321817,1754341754480,-178.28110486,0.00027384,2]
[377321818,1754341754503,-56.73518722,0.00027394,2]
[377321819,1754341756714,-201.99381989,0.00027394,2]
[377321820,1754341760093,-246.64829135,0.00027394,2]
[377321821,1754341762355,-159.58,0.00027394,2]
[377321822,1754341764457,-184.76626635,0.00027394,2]
[377321823,1754341766640,-170.85193117,0.00027394,2]
[377321824,1754341824585,239.19595,0.000294,120]
[377321878,1754341832678,-1698.52542109,0.00027374,2]
[377321879,1754341832688,-500.0,0.00027473,5]
[377321880,1754341832698,-500.0,0.00027473,5]
[377321881,1754341832708,-500.0,0.00027473,5]
[377321882,1754341832717,-500.0,0.00027473,5]
[377321883,1754341832727,-470.75975494,0.00027483,2]
[377321884,1754341832737,-300.0,0.00027483,2]
[377321885,1754341832746,-198.76566797,0.00027483,2]
[377321886,1754341832758,-101.23433203,0.00027483,2]
[377321887,1754341832767,-300.0,0.00027483,2]
[377321889,1754341832776,-135.92290718,0.00027483,2]
[377321895,1754341832824,-164.07709282,0.00027483,2]
[377321897,1754341832836,-1200.0,0.00027483,2]
[377321899,1754341832845,-300.0,0.00027483,2]
[377321901,1754341832855,-500.0,0.00027484,2]
[377321903,1754341832864,-500.0,0.00027484,2]
[377321905,1754341832874,-500.0,0.00027484,2]
[377321907,1754341832884,-500.0,0.00027484,2]
[377321909,1754341832893,-500.0,0.00027484,2]
[377321911,1754341832903,-500.0,0.00027484,2]
[377321913,1754341832912,-500.0,0.00027484,2]
[377321915,1754341832923,-500.0,0.00027484,2]
[377321917,1754341832934,-500.0,0.00027484,2]
[377321919,1754341832945,-500.0,0.00027484,2]
[377321921,1754341832954,-500.0,0.00027484,2]
[377321922,1754341832964,-500.0,0.00027484,2]
[377321923,1754341832974,-500.0,0.00027484,2]
[377321925,1754341832985,-500.0,0.00027484,2]
[377321927,1754341832994,-500.0,0.00027484,2]
[377321929,1754341833004,-500.0,0.00027484,2]
[377321931,1754341833016,-500.0,0.00027484,2]
[377321933,1754341833027,-500.0,0.00027484,2]
[377321951,1754341833214,-500.0,0.00027484,2]
[377321952,1754341833234,-500.0,0.00027484,2]
[377321953,1754341833245,-500.0,0.00027484,2]
[377321954,1754341833255,-500.0,0.00027484,2]
[377321955,1754341833264,-500.0,0.00027484,2]
[377321956,1754341833274,-500.0,0.00027484,2]
[377321958,1754341833284,-500.0,0.00027484,2]
[377321960,1754341833294,-500.0,0.00027484,2]
[377321962,1754341833303,-500.0,0.00027484,2]
[377321964,1754341833312,-500.0,0.00027484,2]
[377321966,1754341833322,-500.0,0.00027484,2]
[377321968,1754341833332,-500.0,0.00027484,2]
[377321970,1754341833342,-500.0,0.00027484,2]
[377321972,1754341833352,-500.0,0.00027484,2]
[377321974,1754341833362,-500.0,0.00027484,2]
[377321976,1754341833372,-500.0,0.00027484,2]
[377321978,1754341833381,-500.0,0.00027484,2]
[377321980,1754341833391,-500.0,0.00027484,2]
[377321982,1754341833401,-500.0,0.00027484,2]
[377321984,1754341833411,-500.0,0.00027484,2]
[377321986,1754341833420,-500.0,0.00027484,2]
[377321988,1754341833431,-500.0,0.00027484,2]
[377321990,1754341833440,-500.0,0.00027484,2]
[377321992,1754341833449,-500.0,0.00027484,2]
[377321994,1754341833459,-500.0,0.00027484,2]
[377321996,1754341833469,-500.0,0.00027484,2]
[377321998,1754341833479,-500.0,0.00027484,2]
[377322000,1754341833490,-500.0,0.00027484,2]
[377322002,1754341833499,-500.0,0.00027484,2]
[377322004,1754341833509,-500.0,0.00027484,2]
[377322006,1754341833519,-500.0,0.00027484,2]
[377322008,1754341833528,-500.0,0.00027484,2]
[377322010,1754341833538,-500.0,0.00027484,2]
[377322012,1754341833548,-500.0,0.00027484,2]
[377322014,1754341833558,-500.0,0.00027484,2]
[377322016,1754341833568,-500.0,0.00027484,2]
[377322018,1754341833578,-500.0,0.00027484,2]
[377322019,1754341833587,-500.0,0.00027484,2]
[377322021,1754341833597,-500.0,0.00027484,2]
[377322023,1754341833607,-500.0,0.00027484,2]
[377322025,1754341833617,-500.0,0.00027484,2]
[377322027,1754341833628,-500.0,0.00027484,2]
[377322029,1754341833637,-500.0,0.00027484,2]
[377322031,1754341833647,-500.0,0.00027484,2]
[377322033,1754341833656,-500.0,0.00027484,2]
[377322035,1754341833666,-500.0,0.00027484,2]
[377322037,1754341833676,-500.0,0.00027484,2]
[377322039,1754341833686,-644.11194554,0.00027484,2]
[377322041,1754341833696,-500.0,0.00027484,2]
[377322043,1754341833705,-500.0,0.00027484,2]
[377322045,1754341833715,-500.0,0.00027484,2]
[377322047,1754341833725,-500.0,0.00027484,2]
[377322049,1754341833734,-500.0,0.00027484,2]
[377322051,1754341833744,-500.0,0.00027484,2]
[377322053,1754341833754,-32.3443909,0.00027484,2]
[377322055,1754341833767,-467.6556091,0.00027484,2]
[377322057,1754341833777,-228.68715169,0.00027484,2]
[377322059,1754341833789,-271.31284831,0.00027484,2]
[377322061,1754341833799,-500.0,0.00027484,2]
[377322063,1754341833809,-500.0,0.00027484,2]
[377322065,1754341833818,-500.0,0.00027484,2]
[377322067,1754341833827,-500.0,0.00027484,2]
[377322069,1754341833837,-467.16342932,0.00027484,2]
[377322071,1754341833847,-500.0,0.00027484,2]
[377322073,1754341833856,-500.0,0.00027484,2]
[377322075,1754341833866,-500.0,0.00027484,2]
[377322077,1754341833875,-500.0,0.00027484,2]
[377322078,1754341833884,-500.0,0.00027484,2]
[377322079,1754341833894,-500.0,0.00027484,2]
[377322080,1754341833904,-500.0,0.00027484,2]
[377322081,1754341833913,-500.0,0.00027484,2]
[377322082,1754341833923,-500.0,0.00027484,2]
[377322083,1754341833933,-500.0,0.00027484,2]
[377322084,1754341833946,-500.0,0.00027484,2]
[377322085,1754341833956,-500.0,0.00027484,2]
[377322086,1754341833966,-500.0,0.00027484,2]
[377322087,1754341833976,-650.0,0.00027484,2]
[377322088,1754341833987,-4098.26871283,0.00027484,2]
[377322090,1754341834108,-480.49896995,0.00027484,2]
[377322091,1754341834124,-1433.16511677,0.00027484,2]
[377322155,1754341834842,259.92129,0.000294,120]
[377322169,1754341838716,-40235.79044671,0.00027484,2]
[377322170,1754341838726,-43273.4133393,0.00027485,2]
[377322171,1754341838735,-2220.09,0.00027486,10]
[377322172,1754341838745,-500.0,0.00027495,2]
[377322173,1754341838756,-1200.0,0.00027495,2]
[377322174,1754341838767,-23896.69859864,0.00027496,2]
[377322175,1754341838776,-734.56166741,0.000279,18]
[377322176,1754341838786,-500.0,0.00028021,5]
[377322177,1754341838797,-161.28725695,0.00028461,2]
[377322178,1754341838808,-1050.98448334,0.00028462,2]
[377322179,1754341838818,-161.28725693,0.00028466,2]
[377322180,1754341838829,-161.28725693,0.00028471,2]
[377322181,1754341838839,-43273.4133393,0.00028549,2]
[377322182,1754341838849,-178.91,0.00028549,3]
[377322183,1754341838859,-536.77,0.00028549,3]
[377322184,1754341838868,-43273.4133393,0.00028562,2]
[377322185,1754341838879,-163.171,0.00028562,20]
[377322186,1754341838889,-500.0,0.00028573,5]
[377322187,1754341838899,-500.82702739,0.00028573,5]
[377322188,1754341838908,-500.0,0.00028573,5]
[377322189,1754341838918,-500.0,0.00028573,5]
[377322190,1754341838928,-500.0,0.00028573,5]
[377322191,1754341838939,-150.83960042,0.00028573,5]
[377322192,1754341838949,-500.0,0.00028573,5]
[377322193,1754341838959,-500.0,0.00028577,2]
[377322194,1754341838969,-500.0,0.00028577,2]
[377322195,1754341838979,-500.0,0.00028577,2]
[377322196,1754341838989,-500.0,0.00028577,2]
[377322197,1754341839002,-339.50601026,0.00028577,2]
[377322198,1754341839015,-173093.653357,0.00028594,2]
[377322199,1754341839025,-157802.34524816,0.00028604,2]
[377322200,1754341839036,-546.69555972,0.00028673,5]
[377322201,1754341839046,-160.0,0.00028702,2]
[377322202,1754341839056,-498.759,0.00028871,2]
[377322203,1754341839066,-745.118,0.00028871,2]
[377322204,1754341839076,-1020.57549595,0.00028945,2]
[377322205,1754341839086,-300.13920376,0.00029121,5]
[377322206,1754341839096,-1000.0,0.00029121,5]
[377322207,1754341839107,-1000.0,0.00029121,5]
[377322208,1754341839117,-159.8194993,0.00029386,2]
[377322209,1754341839127,-563.07,0.00029451,2]
[377322210,1754341839137,-1500.0,0.00029668,5]
[377322211,1754341839146,-1500.0,0.00029668,5]
[377322212,1754341839156,-420.0,0.00029697,2]
[377322213,1754341839166,-420.0,0.00029697,2]
[377322214,1754341839175,-300.0,0.00029697,2]
[377322215,1754341839185,-420.0,0.00029697,2]
[377322216,1754341839195,-1680.0,0.00029827,2]
[377322217,1754341839205,-357.82,0.00029919,3]
[377322218,1754341839215,-1000.0,0.00030216,5]
[377322219,1754341839225,-2000.0,0.00030216,5]
[377322220,1754341839235,-200.0,0.00030233,15]
[377322221,1754341839245,-200.0,0.00030233,15]
[377322222,1754341839255,-200.0,0.00030233,15]
[377322223,1754341839265,-896.9872,0.00030247,30]
[377322224,1754341839275,-1020.57549595,0.00030496,2]
[377322225,1754341839285,-150.0,0.00030567,3]
[377322226,1754341839295,-2500.0,0.00030764,5]
[377322227,1754341839305,-151.0,0.00030836,2]
[377322228,1754341839315,-151.0,0.00030836,2]
[377322229,1754341839325,-151.0,0.00030836,2]
[377322230,1754341839335,-151.0,0.00030836,2]
[377322231,1754341839346,-158.53777336,0.00030836,2]
[377322232,1754341839357,-300.0,0.00030836,2]
[377322233,1754341839367,-300.0,0.00030836,2]
[377322234,1754341839378,-300.0,0.00030836,2]
[377322235,1754341839388,-300.0,0.00030836,2]
[377322236,1754341839398,-300.0,0.00030836,2]
[377322237,1754341839408,-167.79482981,0.00030836,2]
[377322238,1754341839418,-151.0,0.00030836,2]
[377322239,1754341839428,-151.0,0.00030836,2]
[377322240,1754341839439,-151.0,0.00030836,2]
[377322241,1754341839449,-151.0,0.00030836,2]
[377322242,1754341839459,-151.0,0.00030836,2]
[377322243,1754341839468,-151.0,0.00030836,2]
[377322244,1754341839479,-151.0,0.00030836,2]
[377322245,1754341839489,-151.0,0.00030836,2]
[377322246,1754341839499,-151.0,0.00030836,2]
[377322247,1754341839508,-151.0,0.00030836,2]
[377322248,1754341839518,-151.0,0.00030836,2]
[377322249,1754341839529,-151.0,0.00030836,2]
[377322250,1754341839542,-151.0,0.00030836,2]
[377322251,1754341839551,-151.0,0.00030836,2]
[377322252,1754341839561,-151.0,0.00030836,2]
[377322253,1754341839571,-151.0,0.00030836,2]
[377322254,1754341839581,-151.0,0.00030836,2]
[377322255,1754341839593,-151.0,0.00030836,2]
[377322256,1754341839604,-151.0,0.00030836,2]
[377322257,1754341839615,-151.0,0.00030836,2]
[377322258,1754341839625,-151.0,0.00030836,2]
[377322259,1754341839636,-151.0,0.00030836,2]
[377322260,1754341839646,-970.0,0.00030966,2]
[377322261,1754341839656,-2148.0,0.00030966,2]
[377322262,1754341839666,-635.0,0.00030966,2]
[377322263,1754341839676,-1501.06585619,0.00031086,2]
[377322264,1754341839686,-3000.0,0.00031312,5]
[377322265,1754341839696,-160.0,0.0003133,2]
[377322266,1754341839706,-842.05743881,0.0003133,2]
[377322267,1754341839717,-1040.68603505,0.00031515,2]
[377322268,1754341839727,-3500.0,0.0003186,5]
[377322269,1754341839738,-1020.57549595,0.00032047,2]
[377322270,1754341839748,-466.0,0.0003209,3]
[377322271,1754341839758,-587.0,0.0003209,2]
[377322272,1754341839769,-552.0,0.0003209,3]
[377322273,1754341839779,-2351.0,0.00032372,3]
[377322274,1754341839789,-3822.01435023,0.00032408,5]
[377322275,1754341839798,-12652.17918183,0.0003286,2]
[377322276,1754341839809,-160.0,0.00032861,2]
[377322277,1754341839819,-461.05335821,0.00032861,2]
[377322278,1754341839829,-231.67098287,0.00032861,2]
[377322279,1754341839839,-160.0,0.00032861,2]
[377322280,1754341839850,-216.36857094,0.00032861,2]
[377322281,1754341839859,-215.16777298,0.00032861,2]
[377322282,1754341839870,-160.0,0.00032861,2]
[377322283,1754341839880,-160.0,0.00032868,2]
[377322284,1754341839890,-460.0,0.00032876,2]
[377322285,1754341839900,-460.0,0.00032876,2]
[377322286,1754341839910,-463.99405965,0.00032876,2]
[377322287,1754341839920,-460.0,0.00032876,2]
[377322288,1754341839931,-460.0,0.00032876,2]
[377322289,1754341839949,-460.0,0.00032876,2]
[377322290,1754341839959,-460.0,0.00032876,2]
[377322291,1754341839969,-460.0,0.00032876,2]
[377322292,1754341839979,-460.0,0.00032876,2]
[377322293,1754341839990,-418.09116907,0.00032876,2]
[377322294,1754341840000,-460.0,0.00032876,2]
[377322295,1754341840010,-460.0,0.00032876,2]
[377322296,1754341840021,-460.0,0.00032876,2]
[377322297,1754341840031,-460.0,0.00032876,2]
[377322298,1754341840041,-460.0,0.00032876,2]
[377322299,1754341840052,-478.92565392,0.00032876,2]
[377322300,1754341840062,-460.0,0.00032876,2]
[377322301,1754341840071,-460.0,0.00032876,2]
[377322318,1754341840222,-460.0,0.00032876,2]
[377322320,1754341840232,-460.0,0.00032876,2]
[377322322,1754341840243,-636.84,0.00032876,2]
[377322324,1754341840253,-460.0,0.00032876,2]
[377322326,1754341840263,-460.0,0.00032876,2]
[377322328,1754341840273,-460.0,0.00032876,2]
[377322330,1754341840283,-460.0,0.00032876,2]
[377322332,1754341840293,-460.0,0.00032876,2]
[377322334,1754341840303,-460.0,0.00032876,2]
[377322336,1754341840313,-460.0,0.00032876,2]
[377322338,1754341840323,-460.0,0.00032876,2]
[377322340,1754341840333,-460.0,0.00032876,2]
[377322342,1754341840343,-460.0,0.00032876,2]
[377322344,1754341840354,-460.0,0.00032876,2]
[377322346,1754341840364,-460.0,0.00032876,2]
[377322348,1754341840374,-460.0,0.00032876,2]
[377322351,1754341840384,-460.0,0.00032876,2]
[377322353,1754341840394,-460.0,0.00032876,2]
[377322356,1754341840405,-460.0,0.00032876,2]
[377322360,1754341840415,-460.0,0.00032876,2]
[377322362,1754341840425,-460.0,0.00032876,2]
[377322365,1754341840436,-460.0,0.00032876,2]
[377322369,1754341840446,-460.0,0.00032876,2]
[377322372,1754341840456,-460.0,0.00032876,2]
[377322374,1754341840466,-460.0,0.00032876,2]
[377322377,1754341840476,-460.0,0.00032876,2]
[377322381,1754341840486,-330.5,0.00032876,2]
[377322383,1754341840495,-460.0,0.00032876,2]
[377322385,1754341840505,-901.09,0.00032876,2]
[377322388,1754341840515,-460.0,0.00032876,2]
[377322390,1754341840524,-460.0,0.00032876,2]
[377322392,1754341840534,-460.0,0.00032876,2]
[377322393,1754341840543,-460.0,0.00032876,2]
[377322394,1754341840553,-460.0,0.00032876,2]
[377322396,1754341840562,-982.55,0.00032876,2]
[377322398,1754341840572,-460.0,0.00032876,2]
[377322400,1754341840582,-460.0,0.00032876,2]
[377322402,1754341840592,-654.91,0.00032876,2]
[377322404,1754341840602,-460.0,0.00032876,2]
[377322406,1754341840611,-245.96715918,0.00032876,2]
[377322408,1754341840621,-460.0,0.00032876,2]
[377322410,1754341840631,-460.0,0.00032876,2]
[377322412,1754341840640,-460.0,0.00032876,2]
[377322414,1754341840650,-460.0,0.00032876,2]
[377322417,1754341840659,-460.0,0.00032876,2]
[377322419,1754341840669,-460.0,0.00032876,2]
[377322421,1754341840679,-460.0,0.00032876,2]
[377322423,1754341840689,-2152.53,0.00032876,2]
[377322425,1754341840698,-460.0,0.00032876,2]
[377322427,1754341840709,-524.85,0.00032876,2]
[377322429,1754341840718,-460.0,0.00032876,2]
[377322431,1754341840728,-460.0,0.00032876,2]
[377322433,1754341840739,-460.0,0.00032876,2]
[377322436,1754341840749,-460.0,0.00032876,2]
[377322438,1754341840759,-460.0,0.00032876,2]
[377322440,1754341840768,-460.0,0.00032876,2]
[377322442,1754341840778,-460.0,0.00032876,2]
[377322444,1754341840788,-460.0,0.00032876,2]
[377322446,1754341840798,-460.0,0.00032876,2]
[377322448,1754341840808,-521.82,0.00032876,2]
[377322450,1754341840819,-460.0,0.00032876,2]
[377322452,1754341840828,-460.0,0.00032876,2]
[377322454,1754341840838,-462.12565283,0.00032876,2]
[377322456,1754341840848,-460.0,0.00032876,2]
[377322458,1754341840858,-460.0,0.00032876,2]
[377322460,1754341840868,-1168.98,0.00032876,2]
[377322462,1754341840878,-460.0,0.00032876,2]
[377322464,1754341840887,-460.0,0.00032876,2]
[377322465,1754341840897,-541.58563402,0.00032876,2]
[377322466,1754341840906,-460.0,0.00032876,2]
[377322467,1754341840916,-460.0,0.00032876,2]
[377322468,1754341840926,-460.0,0.00032876,2]
[377322469,1754341840941,-460.0,0.00032876,2]
[377322470,1754341840951,-460.0,0.00032876,2]
[377322471,1754341840961,-460.0,0.00032876,2]
[377322472,1754341840971,-460.0,0.00032876,2]
[377322473,1754341840982,-460.0,0.00032876,2]
[377322474,1754341840991,-460.0,0.00032876,2]
[377322475,1754341841001,-460.0,0.00032876,2]
[377322476,1754341841011,-460.0,0.00032876,2]
[377322477,1754341841022,-460.0,0.00032876,2]
[377322478,1754341841034,-460.0,0.00032876,2]
[377322479,1754341841044,-460.0,0.00032876,2]
[377322480,1754341841053,-460.0,0.00032876,2]
[377322481,1754341841063,-677.16,0.00032876,2]
[377322482,1754341841073,-460.0,0.00032876,2]
[377322483,1754341841082,-460.0,0.00032876,2]
[377322484,1754341841092,-460.0,0.00032876,2]
[377322485,1754341841102,-460.0,0.00032876,2]
[377322486,1754341841112,-460.0,0.00032876,2]
[377322487,1754341841122,-460.0,0.00032876,2]
[377322488,1754341841131,-460.0,0.00032876,2]
[377322489,1754341841141,-460.0,0.00032876,2]
[377322490,1754341841150,-460.0,0.00032876,2]
[377322491,1754341841161,-460.0,0.00032876,2]
[377322492,1754341841171,-460.0,0.00032876,2]
[377322493,1754341841181,-460.0,0.00032876,2]
[377322494,1754341841190,-502.33,0.00032876,2]
[377322495,1754341841200,-2002.23,0.00032876,2]
[377322496,1754341841210,-779.21,0.00032876,2]
[377322497,1754341841220,-460.0,0.00032876,2]
[377322498,1754341841230,-16870.26,0.00032876,120]
[377322499,1754341841240,-462.04309906,0.00032876,2]
[377322500,1754341841249,-2862.17,0.00032876,2]
[377322501,1754341841259,-500.0,0.00032877,5]
[377322502,1754341841269,-1133.69,0.000329,7]
[377322503,1754341841278,-2855.68,0.000329,7]
[377322504,1754341841288,-6352.61,0.000329,14]
[377322505,1754341841298,-24766.33,0.000329,14]
[377322506,1754341841307,-160.0,0.00032983,2]
[377322507,1754341841317,-200.0,0.00033132,15]
[377322508,1754341841327,-200.0,0.00033132,15]
[377322509,1754341841337,-200.0,0.00033132,15]
[377322510,1754341841346,-240.0,0.00033132,15]
[377322511,1754341841356,-460.0,0.0003315,2]
[377322512,1754341841366,-460.0,0.0003315,2]
[377322513,1754341841376,-636.84,0.0003315,2]
[377322514,1754341841386,-171.79,0.0003315,2]
[377322515,1754341841395,-460.0,0.0003315,2]
[377322516,1754341841405,-460.0,0.0003315,2]
[377322517,1754341841415,-460.0,0.0003315,2]
[377322518,1754341841424,-460.0,0.0003315,2]
[377322519,1754341841435,-460.0,0.0003315,2]
[377322520,1754341841445,-175.0,0.0003315,2]
[377322521,1754341841455,-460.0,0.0003315,2]
[377322522,1754341841464,-460.0,0.0003315,2]
[377322523,1754341841474,-462.94326011,0.0003315,2]
[377322524,1754341841484,-901.09,0.0003315,2]
[377322525,1754341841493,-982.55,0.0003315,2]
[377322526,1754341841503,-654.91,0.0003315,2]
[377322527,1754341841513,-460.0,0.0003315,2]
[377322528,1754341841522,-2152.53,0.0003315,2]
[377322529,1754341841533,-524.85,0.0003315,2]
[377322530,1754341841542,-460.0,0.0003315,2]
[377322531,1754341841552,-460.0,0.0003315,2]
[377322532,1754341841561,-460.0,0.0003315,2]
[377322533,1754341841571,-460.0,0.0003315,2]
[377322534,1754341841581,-460.0,0.0003315,2]
[377322535,1754341841590,-1168.98,0.0003315,2]
[377322536,1754341841600,-460.0,0.0003315,2]
[377322537,1754341841609,-460.0,0.0003315,2]
[377322538,1754341841619,-460.0,0.0003315,2]
[377322539,1754341841628,-368.06,0.0003315,2]
[377322540,1754341841638,-460.0,0.0003315,2]
[377322541,1754341841648,-460.0,0.0003315,2]
[377322542,1754341841657,-460.0,0.0003315,2]
[377322543,1754341841668,-460.0,0.0003315,2]
[377322544,1754341841677,-460.0,0.0003315,2]
[377322545,1754341841687,-460.0,0.0003315,2]
[377322546,1754341841697,-460.0,0.0003315,2]
[377322547,1754341841707,-677.16,0.0003315,2]
[377322548,1754341841717,-460.0,0.0003315,2]
[377322549,1754341841727,-474.27,0.0003315,2]
[377322550,1754341841736,-460.0,0.0003315,2]
[377322551,1754341841746,-460.0,0.0003315,2]
[377322552,1754341841756,-460.0,0.0003315,2]
[377322553,1754341841766,-481.54,0.0003315,2]
[377322554,1754341841775,-460.0,0.0003315,2]
[377322555,1754341841785,-460.0,0.0003315,2]
[377322556,1754341841795,-502.33,0.0003315,2]
[377322557,1754341841805,-2002.23,0.0003315,2]
[377322558,1754341841814,-779.21,0.0003315,2]
[377322559,1754341841823,-177.945787,0.00033165,2]
[377322560,1754341841833,-259.69,0.000334,2]
[377322561,1754341841843,-460.0,0.00033424,2]
[377322562,1754341841854,-460.0,0.00033424,2]
[377322563,1754341841864,-636.84,0.00033424,2]
[377322564,1754341841873,-460.0,0.00033424,2]
[377322565,1754341841884,-460.0,0.00033424,2]
[377322566,1754341841895,-460.0,0.00033424,2]
[377322567,1754341841905,-460.0,0.00033424,2]
[377322568,1754341841914,-460.0,0.00033424,2]
[377322569,1754341841925,-460.0,0.00033424,2]
[377322570,1754341841935,-460.0,0.00033424,2]
[377322571,1754341841949,-901.09,0.00033424,2]